bitfinex-derivatives/quotes_ETHF0:USTF0_20250326
["timestamp","ask_amount","ask_price","bid_price","bid_amount"]
[1742966302705,2.27023,2053.5,2053.4,1.9613]
[1742966303310,2.27023,2053.5,2053.4,2.93517]
[1742966303494,1.2964,2053.5,2053.4,2.93517]
[1742966304504,4.544,2053.6,2053.5,0.97383]
[1742966304703,4.544,2053.6,2053.5,2.29493]
[1742966306204,5.51778,2053.6,2053.5,1.3211]
[1742966306712,0.97392,2053.3,2053.2,0.00729732]
[1742966307610,2.37052,2053.3,2053.2,0.00729732]
[1742966308407,2.37052,2053.3,2053.2,1.42139732]
[1742966309905,2.37052,2053.3,2053.2,2.39536732]
[1742966310106,2.37052,2053.3,2053.2,1.42139732]
[1742966311410,2.37052,2053.3,2053.2,0.00729732]
[1742966313311,2.37052,2053.3,2053.2,0.98126732]
[1742966313814,2.37052,2053.3,2053.2,0.00729732]
[1742966314421,2.37052,2053.3,2053.2,0.98126732]
[1742966314713,1.3966,2053.3,2053.2,0.98126732]
[1742966315609,1.3966,2053.3,2053.2,2.31916732]
[1742966319017,1.3966,2053.3,2053.2,3.60826732]
[1742966329925,2.37052,2053.3,2053.2,2.96016732]
[1742966330124,2.37052,2053.3,2053.2,0.00729732]
[1742966333818,2.37052,2053.3,2053.2,1.28319732]
[1742966334420,5.46052,2053.3,2053.2,1.28319732]
[1742966336628,1.3966,2053.3,2053.2,2.25716732]
[1742966336930,1.3966,2053.3,2053.2,2.93216732]
[1742966337732,2.37052,2053.3,2053.2,2.93216732]
[1742966338630,1.3966,2053.3,2053.2,2.93216732]
[1742966340126,2.37052,2053.3,2053.2,2.93216732]
[1742966340432,2.37052,2053.3,2053.2,1.95819732]
[1742966340622,1.3966,2053.3,2053.2,2.93216732]
[1742966341030,2.37052,2053.3,2053.2,2.93216732]
[1742966341829,1.3966,2053.3,2053.2,2.93216732]
[1742966343627,0.6679,2053.5,2053.4,0.97387]
[1742966343831,4.8829,2053.6,2053.5,0.97383]
[1742966343832,3.2078,2053.6,2053.5,0.97383]
[1742966344033,4.18161,2053.6,2053.4,0.97384]
[1742966344230,4.18161,2053.6,2053.5,1.68073]
[1742966344426,4.18161,2053.6,2053.5,0.7069]
[1742966344933,5.50091,2053.6,2053.5,1.9959]
[1742966346230,5.50091,2053.6,2053.5,2.96973]
[1742966346537,4.5271,2053.6,2053.5,2.96973]
[1742966347238,3.2078,2053.6,2053.5,2.96973]
[1742966349037,1.37179732,2053.7,2053.6,0.97378]
[1742966349239,0.00729732,2053.7,2053.6,2.34928]
[1742966349439,0.00729732,2053.7,2053.6,3.00228]
[1742966352048,1.34149732,2053.7,2053.6,3.00228]
[1742966353739,1.98619732,2053.7,2053.6,3.00228]
[1742966355143,2.95992732,2053.7,2053.6,3.00228]
[1742966355342,1.98619732,2053.7,2053.6,3.00228]
[1742966356460,1.34149732,2053.7,2053.6,3.00228]
[1742966356750,0.00729732,2053.7,2053.6,3.00228]
[1742966360652,0.00729732,2053.7,2053.6,2.34928]
[1742966360854,1.68052732,2053.7,2053.6,2.34928]
[1742966361355,3.07932732,2053.7,2053.6,2.34928]
[1742966361553,1.40609732,2053.7,2053.6,2.34928]
[1742966367963,0.00729732,2053.7,2053.6,2.34928]
[1742966368157,0.00729732,2053.7,2053.6,43.14928]
[1742966369454,0.00729732,2053.7,2053.6,2.34928]
[1742966382264,0.97378,2053.6,2053.5,1.68069]
[1742966382461,0.97378,2053.6,2053.5,0.97379]
[1742966382462,2.36398,2053.6,2053.5,0.97379]
[1742966383771,1.3902,2053.6,2053.5,0.97379]
[1742966386771,2.36398,2053.6,2053.5,0.97379]
[1742966389674,0.97383,2053.5,2053.4,0.97384]
[1742966389868,2.32223,2053.5,2053.4,0.97384]
[1742966390069,1.3484,2053.5,2053.4,0.97384]
[1742966390766,1.3484,2053.5,2053.4,2.35414]
[1742966390974,1.3484,2053.5,2053.4,0.97384]
[1742966392175,2.32223,2053.5,2053.4,0.97384]
[1742966393265,2.32223,2053.5,2053.4,2.35904]
[1742966394485,1.3484,2053.5,2053.4,2.35904]
[1742966399884,1.3484,2053.5,2053.4,3.00194]
[1742966400383,2.32223,2053.5,2053.4,3.00194]
[1742966400581,2.32223,2053.5,2053.4,2.35904]
[1742966401287,0.97387,2053.4,2053.3,1.66038]
[1742966401489,0.97387,2053.4,2053.3,3.02688]
[1742966401490,2.97597,2053.4,2053.3,3.02688]
[1742966404980,0.97392,2053.3,2053.2,0.00729732]
[1742966405184,3.01642,2053.3,2053.2,0.00729732]
[1742966408287,2.43497,2053.2,2052.8,0.97412]
[1742966408494,0.97416,2052.8,2052.7,2.32379]
[1742966408797,0.97415,2052.9,2052.7,2.32379]
[1742966408992,0.97415,2052.9,2052.8,0.97416]
[1742966409189,0.97415,2052.9,2052.8,2.26656]
[1742966409397,2.36545,2052.9,2052.8,2.26656]
[1742966409692,2.36545,2052.9,2052.8,1.2924]
[1742966410396,2.36545,2052.9,2052.8,2.26656]
[1742966412902,0.97416,2052.8,2052.7,2.32379]
[1742966413100,2.33696,2052.8,2052.7,3.65159]
[1742966413402,1.3628,2052.8,2052.7,3.65159]
[1742966415001,2.33696,2052.8,2052.7,3.65159]
[1742966415996,1.3628,2052.8,2052.7,3.65159]
[1742966416496,1.3628,2052.8,2052.6,4.18930732]
[1742966416797,0.9742,2052.7,2052.6,0.00729732]
[1742966417000,0.9742,2052.7,2052.6,0.98154732]
[1742966418603,2.3139,2052.7,2052.6,0.98154732]
[1742966419909,2.3139,2052.7,2052.6,0.00729732]
[1742966420305,2.3139,2052.7,2052.6,0.98154732]
[1742966421003,2.3139,2052.7,2052.6,0.00729732]
[1742966421707,2.3139,2052.7,2052.6,1.36969732]
[1742966422110,2.3139,2052.7,2052.6,2.34394732]
[1742966422301,2.3139,2052.7,2052.6,1.36969732]
[1742966426612,2.9881,2052.7,2052.6,0.00729732]
[1742966426909,0.97438,2052.4,2052.2,0.9744]
[1742966427109,0.97439,2052.3,2052.2,2.0944]
[1742966427314,0.97439,2052.3,2052.2,1.4121]
[1742966427903,2.31169,2052.3,2052.2,1.4121]
[1742966428898,2.31169,2052.3,2052.2,2.38654]
[1742966429109,2.31169,2052.3,2052.2,1.4121]
[1742966432513,2.31169,2052.3,2052.2,2.38654]
[1742966432914,2.31169,2052.3,2052.2,1.4121]
[1742966434415,2.31169,2052.3,2052.2,2.38654]
[1742966435215,2.31169,2052.3,2052.2,1.4121]
[1742966436316,2.31169,2052.3,2052.2,2.38654]
[1742966436521,2.31169,2052.3,2052.2,1.4121]
[1742966437109,0.97444,2052.2,2052.0,4.18959732]
[1742966437309,2.26094,2052.2,2052.0,4.52819732]
[1742966437511,2.26094,2052.2,2052.1,2.6427]
[1742966437821,0.97444,2052.2,2052.1,2.6427]
[1742966438216,0.97442,2052.3,2052.1,2.6427]
[1742966438417,0.97442,2052.3,2052.2,1.2921]
[1742966440311,0.97442,2052.3,2052.2,2.26654]
[1742966440511,0.97442,2052.3,2052.2,1.2921]
[1742966440912,0.97442,2052.3,2052.2,2.26654]
[1742966441322,0.97442,2052.3,2052.2,1.2921]
[1742966442523,0.97442,2052.3,2052.2,2.26654]
[1742966443222,0.97442,2052.3,2052.2,1.2921]
[1742966444422,0.97442,2052.3,2052.2,2.26654]
[1742966445616,0.97442,2052.3,2052.2,1.2921]
[1742966446723,0.97442,2052.3,2052.2,2.26654]
[1742966446912,0.97442,2052.3,2052.2,1.2921]
[1742966447113,0.97442,2052.3,2052.2,2.26654]
[1742966449821,0.00729732,2052.5,2052.4,0.97435]
[1742966450422,0.00729732,2052.5,2052.4,2.35065]
[1742966451126,0.00729732,2052.5,2052.4,3.65515]
[1742966457430,1.28589732,2052.5,2052.4,3.65515]
[1742966470544,2.26019732,2052.5,2052.4,3.65515]
[1742966471145,1.28589732,2052.5,2052.4,3.65515]
[1742966472243,2.26019732,2052.5,2052.4,3.65515]
[1742966473653,1.28589732,2052.5,2052.4,3.65515]
[1742966476652,0.00729732,2052.5,2052.4,3.65515]
[1742966476953,1.35199732,2052.5,2052.4,3.65515]
[1742966481856,2.32629732,2052.5,2052.4,3.65515]
[1742966482062,2.32629732,2052.5,2052.4,2.96745]
[1742966483546,0.97435,2052.4,2052.3,0.97439]
[1742966483747,0.97439,2052.3,2052.2,4.1822]
[1742966484048,3.63678,2052.4,2052.3,0.97439]
[1742966484242,2.32178,2052.4,2052.3,0.97439]
[1742966484561,1.3474,2052.4,2052.3,2.32079]
[1742966484953,0.6418,2052.4,2052.3,2.32079]
[1742966488660,1.61615,2052.4,2052.3,2.32079]
[1742966488855,0.6418,2052.4,2052.3,2.32079]
[1742966493164,0.00729732,2052.5,2052.4,0.97435]
[1742966493365,0.00729732,2052.5,2052.4,3.67705]
[1742966495165,0.98159732,2052.5,2052.4,3.67705]
[1742966495764,0.98159732,2052.5,2052.4,2.7027]
[1742966496058,0.98159732,2052.5,2052.4,3.67705]
[1742966496864,0.98159732,2052.5,2052.4,2.7027]
[1742966497066,0.98159732,2052.5,2052.4,2.0452]
[1742966497265,2.30239732,2052.5,2052.4,2.0452]
[1742966500061,0.97439,2052.3,2052.2,1.67701]
[1742966500257,0.97444,2052.2,2052.1,3.2078]
[1742966500569,1.64484,2052.2,2052.1,3.2078]
[1742966500759,1.64484,2052.2,2052.1,4.18229]
[1742966500960,1.64484,2052.2,2052.1,3.2078]
[1742966501481,3.02724,2052.2,2052.1,4.5221]
[1742966503669,3.02724,2052.2,2052.1,5.49659]
[1742966504273,3.02724,2052.2,2052.1,4.5221]
[1742966504463,3.02724,2052.2,2052.1,5.49659]
[1742966504862,3.02724,2052.2,2052.1,4.5221]
[1742966506171,3.02724,2052.2,2052.1,1.3143]
[1742966506369,3.02724,2052.2,2052.1,2.28879]
[1742966506571,3.02724,2052.2,2052.1,1.3143]
[1742966506771,3.02724,2052.2,2052.1,2.28879]
[1742966508964,3.02724,2052.2,2052.1,2.97479]
[1742966509273,1.3824,2052.2,2052.1,2.97479]
[1742966509465,1.3824,2052.2,2052.1,3.65179]
[1742966510870,2.35684,2052.2,2052.1,3.65179]
[1742966511067,1.3824,2052.2,2052.1,3.65179]
[1742966511469,2.35684,2052.2,2052.1,3.65179]
[1742966511777,2.35684,2052.2,2052.1,2.6773]
[1742966514064,1.3824,2052.2,2052.1,3.65179]
[1742966514677,3.2078,2052.4,2052.3,0.97439]
[1742966514874,0.00729732,2052.5,2052.4,0.97435]
[1742966515184,0.94750752,2052.8,2052.7,0.9742]
[1742966515677,1.3437,2052.9,2052.8,0.97416]
[1742966516491,1.3437,2052.9,2052.8,1.61426]
[1742966519173,0.00729732,2053.1,2053.0,0.97406]
[1742966519565,0.00729732,2053.1,2053.0,2.37116]
[1742966519971,1.31729732,2053.1,2053.0,43.17116]
[1742966521284,1.31729732,2053.1,2053.0,2.37116]
[1742966521774,1.31729732,2053.1,2053.0,43.17116]
[1742966522380,1.31729732,2053.1,2053.0,2.37116]
[1742966525383,1.31729732,2053.1,2052.9,3.9112]
[1742966525582,1.31729732,2053.1,2053.0,0.97406]
[1742966525778,1.31729732,2053.1,2053.0,2.38676]
[1742966525979,2.00199732,2053.1,2053.0,2.38676]
[1742966529685,2.97600732,2053.1,2052.9,1.67748]
[1742966529988,0.97406,2053.0,2052.9,0.97408]
[1742966530180,0.97406,2053.0,2052.8,0.97412]
[1742966530181,1.3963,2053.0,2052.8,0.97412]
[1742966530381,2.37039,2053.0,2052.8,0.97412]
[1742966530582,2.3704,2053.0,2052.8,0.97412]
[1742966530783,1.3963,2052.9,2052.8,0.97412]
[1742966530983,2.37041,2052.9,2052.8,0.97412]
[1742966531179,1.3963,2052.9,2052.8,0.97412]
[1742966531687,1.3963,2052.9,2052.8,2.33902]
[1742966532190,2.37041,2052.9,2052.8,2.33902]
[1742966532490,1.3963,2052.9,2052.8,2.33902]
[1742966533694,2.37041,2052.9,2052.8,2.33902]
[1742966534386,2.37041,2052.9,2052.8,0.97412]
[1742966534979,1.3963,2052.9,2052.8,0.97412]
[1742966535390,1.3963,2052.9,2052.8,2.38522]
[1742966539192,2.37041,2052.9,2052.8,1.4111]
[1742966539395,2.37041,2052.9,2052.7,1.64677]
[1742966539396,1.3963,2052.9,2052.7,1.64677]
[1742966539593,2.98277,2052.8,2052.6,6.16222]
[1742966539792,1.3501,2052.7,2052.6,4.18202]
[1742966540195,0.97434,2052.5,2052.3,41.77437]
[1742966540395,2.0086,2052.4,2052.3,0.97437]
[1742966540898,2.98295,2052.4,2052.3,0.97437]
[1742966541294,2.0086,2052.4,2052.3,0.97437]
[1742966542197,2.98295,2052.4,2052.3,0.97437]
[1742966545902,2.0086,2052.4,2052.3,0.97437]
[1742966546399,2.98295,2052.4,2052.3,0.97437]
[1742966547008,2.0086,2052.4,2052.3,0.97437]
[1742966549798,2.98295,2052.4,2052.3,0.97437]
[1742966550296,2.0086,2052.4,2052.3,0.97437]
[1742966550502,0.97439,2052.3,2052.2,2.30271]
[1742966550806,1.3473,2052.3,2052.2,2.30271]
[1742966552503,2.32169,2052.3,2052.2,2.30271]
[1742966552703,1.3473,2052.3,2052.2,2.30271]
[1742966564614,2.32169,2052.3,2052.2,2.30271]
[1742966564819,1.3473,2052.3,2052.2,2.30271]
[1742966567616,2.32169,2052.3,2052.2,2.30271]
[1742966571329,1.3473,2052.3,2052.2,2.30271]
[1742966582626,2.32169,2052.3,2052.2,2.30271]
[1742966582826,1.3473,2052.3,2052.2,2.30271]
[1742966583336,1.9946,2052.3,2052.2,2.30271]
[1742966583827,2.96899,2052.3,2052.2,2.30271]
[1742966584036,1.3473,2052.3,2052.2,2.30271]
[1742966584937,2.32169,2052.3,2052.2,2.30271]
[1742966585336,1.3473,2052.3,2052.2,2.30271]
[1742966588133,2.32169,2052.3,2052.2,2.30271]
[1742966588329,2.32169,2052.3,2052.2,0.97441]
[1742966588532,2.32169,2052.3,2052.2,2.29071]
[1742966588931,1.3473,2052.3,2052.2,2.29071]
[1742966590236,2.32169,2052.3,2052.2,2.29071]
[1742966590638,1.3473,2052.3,2052.2,2.29071]
[1742966590836,2.32169,2052.3,2052.2,2.29071]
[1742966591143,0.97449,2052.1,2052.0,3.21509732]
[1742966591546,0.6387,2052.2,2052.0,4.18959732]
[1742966591547,1.9787,2052.2,2052.0,4.18959732]
[1742966591733,2.95318,2052.2,2052.1,0.97449]
[1742966591931,1.61318,2052.2,2052.1,2.28859]
[1742966593539,1.61318,2052.2,2052.1,1.3141]
[1742966593935,0.97449,2052.1,2052.0,0.00729732]
[1742966596438,0.97472,2051.7,2051.5,1.64406]
[1742966596638,0.6549,2051.6,2051.5,3.04146]
[1742966596940,0.6549,2051.6,2051.5,3.04147]
[1742966597245,0.6549,2051.6,2051.5,2.0667]
[1742966597246,1.62963,2051.6,2051.5,2.0667]
[1742966597836,0.6549,2051.6,2051.5,3.04147]
[1742966598244,0.6549,2051.6,2051.5,2.0667]
[1742966598830,1.62963,2051.6,2051.5,2.0667]
[1742966599644,1.62963,2051.6,2051.4,0.97479]
[1742966599943,1.62963,2051.6,2051.4,2.37799]
[1742966600145,0.97477,2051.5,2051.4,1.4032]
[1742966600445,4.18257,2051.5,2051.4,1.4032]
[1742966601532,4.18257,2051.5,2051.3,0.98214732]
[1742966601733,4.06484,2051.4,2051.2,0.9749]
[1742966602137,0.6759,2051.3,2051.2,0.9749]
[1742966602339,0.6759,2051.3,2051.2,2.2803]
[1742966603836,4.06484,2051.4,2051.3,0.97487]
[1742966603837,3.09,2051.4,2051.3,0.97487]
[1742966604042,4.06482,2051.4,2051.3,1.3054]
[1742966604942,3.09,2051.4,2051.3,1.3054]
[1742966605342,4.06482,2051.4,2051.3,1.3054]
[1742966607440,5.43502,2051.4,2051.3,1.3054]
[1742966609742,6.07702,2051.4,2051.3,1.3054]
[1742966612138,5.1022,2051.4,2051.1,2.32446]
[1742966612340,2.27121,2051.3,2051.2,1.3484]
[1742966612544,2.91261,2051.3,2051.2,1.3484]
[1742966613557,2.91261,2051.3,2051.2,2.32332]
[1742966613853,2.27117,2051.3,2051.2,2.32332]
[1742966614649,2.27117,2051.3,2051.2,1.3484]
[1742966614952,2.27117,2051.3,2051.2,2.32332]
[1742966616853,1.2963,2051.3,2051.2,2.32332]
[1742966617147,2.27117,2051.3,2051.2,1.3484]
[1742966619054,2.27117,2051.3,2051.2,2.32332]
[1742966628065,2.27117,2051.3,2051.2,0.97492]
[1742966628248,2.92317,2051.3,2051.1,2.718]
[1742966628452,1.3676,2051.2,2051.1,3.69296]
[1742966630761,2.34252,2051.2,2051.1,3.69296]
[1742966631058,2.34252,2051.2,2051.1,2.718]
[1742966631259,2.34252,2051.2,2051.1,3.69296]
[1742966631458,3.02442,2051.2,2051.1,3.69296]
[1742966636969,3.02442,2051.2,2051.1,2.718]
[1742966646566,3.02442,2051.2,2051.1,2.0503]
[1742966646774,0.97496,2051.1,2051.0,0.97983486]
[1742966647075,2.27696,2051.1,2051.0,2.34443486]
[1742966648476,2.27696,2051.1,2051.0,1.36946486]
[1742966648673,2.27696,2051.1,2051.0,2.34447486]
[1742966648876,2.27696,2051.1,2051.0,1.36946486]
[1742966651483,2.27696,2051.1,2051.0,2.34447486]
[1742966652877,2.27696,2051.1,2051.0,1.36946486]
[1742966653084,2.27696,2051.1,2051.0,2.34447486]
[1742966653472,2.27696,2051.1,2051.0,1.36946486]
[1742966656380,5.36796,2051.1,2051.0,1.36946486]
[1742966668392,5.36796,2051.1,2051.0,2.34447486]
[1742966668590,5.36796,2051.1,2051.0,1.36946486]
[1742966669592,0.97525,2050.5,2050.4,4.18307]
[1742966669792,2.43768,2050.9,2050.4,7.6753]
[1742966669793,3.2078,2050.9,2050.4,7.6753]
[1742966670090,1.2776,2050.8,2050.7,0.97515]
[1742966670288,2.25271,2050.8,2050.7,0.97515]
[1742966670491,1.2776,2050.8,2050.7,0.97515]
[1742966671380,2.25271,2050.8,2050.7,0.97515]
[1742966671692,1.2776,2050.8,2050.7,0.97515]
[1742966672295,2.25271,2050.8,2050.7,0.97515]
[1742966672489,1.2776,2050.8,2050.7,0.97515]
[1742966674195,2.25271,2050.8,2050.7,0.97515]
[1742966674791,0.97515,2050.7,2050.6,2.36417]
[1742966674993,1.373,2050.7,2050.6,2.36417]
[1742966675394,1.373,2050.7,2050.6,1.389]
[1742966677298,2.34815,2050.7,2050.6,2.3642]
[1742966677598,1.373,2050.7,2050.6,2.3642]
[1742966677799,0.9751,2050.9,2050.8,0.97511]
[1742966677990,2.3215,2050.9,2050.8,0.97511]
[1742966678185,2.3215,2050.9,2050.7,5.54902]
[1742966678495,2.32151,2050.8,2050.7,4.18292]
[1742966678691,1.3464,2050.8,2050.7,4.18292]
[1742966678998,2.32151,2050.8,2050.7,4.18292]
[1742966681292,1.3464,2050.8,2050.7,4.18292]
[1742966681991,0.98233547,2051.0,2050.9,0.97506]
[1742966682998,0.00731547,2051.0,2050.9,0.97506]
[1742966683199,1.33491547,2051.0,2050.9,0.97506]
[1742966683794,2.30992547,2051.0,2050.9,0.97506]
[1742966683999,1.33491547,2051.0,2050.9,0.97506]
[1742966685301,2.30992547,2051.0,2050.9,0.97506]
[1742966690606,1.33491547,2051.0,2050.9,0.97506]
[1742966692712,1.33491547,2051.0,2050.9,1.67826]
[1742966696116,2.30992547,2051.0,2050.9,1.67826]
[1742966697920,2.30992547,2051.0,2050.9,3.06526]
[1742966698719,1.33491547,2051.0,2050.9,3.06526]
[1742966704019,2.30992547,2051.0,2050.9,3.06526]
[1742966704322,3.00832547,2051.0,2050.9,3.06526]
[1742966704922,3.00832547,2051.0,2050.9,0.97506]
[1742966707019,3.00832547,2051.0,2050.8,4.5077]
[1742966707020,0.97506,2050.9,2050.8,3.2078]
[1742966707218,3.01016,2050.9,2050.8,3.2078]
[1742966708821,2.0351,2050.9,2050.8,4.18291]
[1742966709227,1.367,2050.9,2050.8,4.18291]
[1742966709421,1.367,2050.9,2050.8,5.47701]
[1742966711026,0.00731547,2051.0,2050.9,0.97506]
[1742966711226,1.38721547,2051.0,2050.9,2.28016]
[1742966711424,1.38721547,2051.0,2050.9,43.08016]
[1742966715032,2.36222547,2051.0,2050.9,43.08016]
[1742966715234,2.36222547,2051.0,2050.9,2.28016]
[1742966715533,2.36222547,2051.0,2050.9,1.3051]
[1742966715732,2.36222547,2051.0,2050.9,2.28016]
[1742966717429,1.38721547,2051.0,2050.9,2.28016]
[1742966718637,2.36222547,2051.0,2050.9,2.28016]
[1742966722036,2.36222547,2051.0,2050.9,1.3051]
[1742966722239,2.36222547,2051.0,2050.9,2.28016]
[1742966722438,2.36222547,2051.0,2050.9,1.3051]
[1742966723239,2.36222547,2051.0,2050.9,2.28016]
[1742966728245,0.97506,2050.9,2050.8,2.26918]
[1742966728444,2.98316,2050.9,2050.8,2.26918]
[1742966731949,2.98316,2050.9,2050.8,1.62898]
[1742966732646,2.98316,2050.9,2050.8,3.01618]
[1742966736257,1.3124,2050.9,2050.8,3.01618]
[1742966738654,0.00731547,2051.0,2050.9,0.97506]
[1742966738855,0.00731547,2051.0,2050.9,2.27686]
[1742966742561,0.00731547,2051.0,2050.9,5.48466]
[1742966745064,0.00731547,2051.0,2050.9,6.12596]
[1742966748962,3.7502,2051.4,2051.3,0.97487]
[1742966749359,0.6602,2051.4,2051.3,0.97487]
[1742966749860,1.63502,2051.4,2051.3,0.97487]
[1742966750366,3.03712,2051.4,2051.3,2.32247]
[1742966751960,2.0623,2051.4,2051.3,2.32247]
[1742966752267,3.03712,2051.4,2051.3,2.32247]
[1742966752473,1.4021,2051.4,2051.3,2.32247]
[1742966753065,0.00731547,2051.6,2051.5,0.97477]
[1742966753259,1.37857917,2051.6,2051.5,4.18257]
[1742966753455,1.37857917,2051.6,2051.5,4.82217]
[1742966753670,1.37857917,2051.6,2051.5,5.46027]
[1742966756472,0.00731547,2051.8,2051.7,0.97468]
[1742966757964,1.30451547,2051.8,2051.7,0.97468]
[1742966758365,0.00731547,2051.8,2051.7,0.97468]
[1742966759258,0.00731547,2051.8,2051.7,2.26958]
[1742966759459,0.00731547,2051.8,2051.7,43.06958]
[1742966770778,0.64751547,2051.8,2051.7,43.06958]
[1742966774680,2.02091547,2051.8,2051.7,41.77468]
[1742966774869,2.02091547,2051.8,2051.7,43.06788]
[1742966776783,2.99554547,2051.8,2051.7,43.06788]
[1742966777084,3.64164547,2051.8,2051.7,43.06788]
[1742966777979,2.66701547,2051.8,2051.7,43.06788]
[1742966778685,2.66701547,2051.8,2051.7,46.27568]
[1742966779684,3.64164547,2051.8,2051.7,46.27568]
[1742966780382,2.66701547,2051.8,2051.7,46.27568]
[1742966780572,3.64164547,2051.8,2051.7,44.98248]
[1742966788584,3.64164547,2051.8,2051.7,4.18248]
[1742966790284,3.64164547,2051.8,2051.7,3.2078]
[1742966790898,3.64164547,2051.8,2051.7,4.18248]
[1742966791090,3.64164547,2051.8,2051.7,3.2078]
[1742966793191,0.97473,2051.6,2051.5,40.8]
[1742966793397,0.97477,2051.5,2051.4,2.27101]
[1742966793596,3.66817,2051.5,2051.4,2.27101]
[1742966796594,3.66817,2051.5,2051.4,1.2962]
[1742966796794,3.66817,2051.5,2051.4,2.27102]
[1742966797096,3.66817,2051.5,2051.4,1.2962]
[1742966797297,3.66817,2051.5,2051.4,2.27102]
[1742966797492,1.3608,2051.5,2051.4,2.27102]
[1742966797691,1.3608,2051.5,2051.4,2.96602]
[1742966798395,1.3608,2051.5,2051.4,43.76602]
[1742966800399,3.21511547,2051.8,2051.4,43.76602]
[1742966800400,3.21511547,2051.8,2051.7,0.97468]
[1742966801200,4.18974547,2051.8,2051.7,0.97468]
[1742966801400,3.21511547,2051.8,2051.7,0.97468]
[1742966802000,4.18974547,2051.8,2051.7,2.38038]
[1742966805090,5.46834547,2051.8,2051.7,2.38038]
[1742966805690,4.49371547,2051.8,2051.7,2.38038]
[1742966814307,5.46834547,2051.8,2051.7,2.38038]
[1742966815507,4.49371547,2051.8,2051.7,2.38038]
[1742966815709,5.46834547,2051.8,2051.7,2.38038]
[1742966819306,4.49371547,2051.8,2051.7,2.38038]
[1742966826921,1.28591547,2051.8,2051.7,2.38038]
[1742966847951,0.00731547,2051.8,2051.7,2.38038]
[1742966848950,1.3944,2052.0,2051.7,2.38038]
[1742966849153,1.3944,2052.0,2051.9,0.97458]
[1742966849660,1.3944,2052.0,2051.9,2.31588]
[1742966881169,0.71271547,2052.2,2052.1,0.97449]
[1742966881474,3.2078,2052.7,2052.6,0.97425]
[1742966881975,4.72298,2052.8,2052.4,7.00486]
[1742966882181,4.72298,2052.8,2052.7,0.9742]
[1742966882679,2.32448,2052.8,2052.7,0.9742]
[1742966882875,1.3503,2052.8,2052.7,0.9742]
[1742966884674,1.3503,2052.8,2052.7,41.7742]
[1742966884979,2.6554,2052.8,2052.7,41.7742]
[1742966885883,1.9926,2052.8,2052.7,41.7742]
[1742966887082,1.3051,2052.8,2052.7,44.982]
[1742966887477,0.66751547,2053.0,2052.9,0.97411]
[1742966887678,2.07201547,2053.0,2052.9,0.97411]
[1742966888180,1.41181547,2053.0,2052.9,0.97411]
[1742966888487,1.41181547,2053.0,2052.9,2.30911]
[1742966893783,0.00731547,2053.0,2052.9,2.30911]
[1742966894183,0.00731547,2053.0,2052.9,3.71541]
[1742966894386,3.9135,2053.3,2053.1,0.97401]
[1742966894387,1.4159,2053.2,2053.1,0.97401]
[1742966894984,1.4159,2053.2,2053.1,2.38031]
[1742966908189,1.36171547,2053.4,2053.3,0.97392]
[1742966909398,2.71761547,2053.4,2053.3,2.31052]
[1742966911491,3.69148547,2053.4,2053.3,2.31052]
[1742966913297,2.71761547,2053.4,2053.3,2.31052]
[1742966913994,3.69148547,2053.4,2053.3,2.31052]
[1742966914208,2.71761547,2053.4,2053.3,1.3366]
[1742966915297,2.71761547,2053.4,2053.3,2.31052]
[1742966915497,3.69148547,2053.4,2053.3,2.31052]
[1742966916900,2.71761547,2053.4,2053.3,2.31052]
[1742966918304,3.69148547,2053.4,2053.3,2.31052]
[1742966918605,2.71761547,2053.4,2053.3,2.31052]
[1742966919205,1.36321547,2053.4,2053.3,2.31052]
[1742966919404,0.00731547,2053.4,2053.3,2.31052]
[1742966921106,0.00731547,2053.4,2053.3,5.39452]
[1742966923407,1.94395,2053.5,2053.4,0.97387]
[1742966923707,1.94395,2053.5,2053.4,2.39017]
[1742966928005,3.27285,2053.5,2053.4,2.39017]
[1742966928911,0.97389,2053.4,2053.3,0.97391]
[1742966929116,2.99339,2053.4,2053.3,1.3546]
[1742966929613,2.0195,2053.4,2053.3,2.32852]
[1742966933014,2.99337,2053.4,2053.3,2.32852]
[1742966933412,2.0195,2053.4,2053.3,2.32852]
[1742966933612,2.0195,2053.4,2053.2,3.2078]
[1742966933808,3.03066,2053.3,2053.1,2.36659]
[1742966934013,2.38947,2053.2,2053.1,2.36659]
[1742966934212,2.38947,2053.2,2053.1,1.3926]
[1742966935011,2.38947,2053.2,2053.1,2.36661]
[1742966935709,2.38947,2053.2,2053.1,1.3926]
[1742966937519,2.38947,2053.2,2053.1,2.36661]
[1742966938517,2.38947,2053.2,2053.1,1.3926]
[1742966940723,2.38947,2053.2,2053.1,2.36661]
[1742966941223,2.38947,2053.2,2053.1,1.3926]
[1742966945020,1.4155,2053.2,2052.9,3.895]
[1742966945226,3.849,2053.3,2052.9,4.18187]
[1742966945227,0.97406,2053.0,2052.9,4.18187]
[1742966945526,2.97295,2053.1,2053.0,0.97406]
[1742966946324,2.97295,2053.1,2053.0,1.3218]
[1742966946522,2.97295,2053.1,2053.0,2.29586]
[1742966947332,2.97295,2053.1,2053.0,1.3218]
[1742966948324,2.97295,2053.1,2053.0,2.29586]
[1742966948532,2.97295,2053.1,2053.0,1.3218]
[1742966948729,2.97295,2053.1,2053.0,2.29586]
[1742966949222,2.97295,2053.1,2053.0,1.3218]
[1742966950330,2.97295,2053.1,2053.0,2.29586]
[1742966956329,2.30905,2053.1,2053.0,2.29586]
[1742966966443,2.30905,2053.1,2053.0,1.3218]
[1742966967030,2.30905,2053.1,2053.0,2.29586]
[1742966981144,2.30901,2053.1,2053.0,2.29586]
[1742966981853,0.97398,2053.2,2053.1,0.97397]
[1742966982059,2.32758,2053.2,2053.1,0.97397]